fUSD/lending_fUSD_20240714
["ID","MTS","AMOUNT","RATE_DAILY","PERIOD"]
[332071625,1720949445515,-921.65,0.00013753,2]
[332071627,1720949445525,-520.41,0.00013753,2]
[332071629,1720949445534,-150.0,0.00013753,2]
[332071631,1720949445543,-500.0,0.00013753,2]
[332071633,1720949445553,-1027.23,0.00013753,2]
[332071635,1720949445563,-1175.23,0.00013753,2]
[332071637,1720949445572,-1200.92,0.00013753,2]
[332071639,1720949445582,-521.98,0.00013753,2]
[332071641,1720949445591,-516.97,0.00013753,2]
[332071643,1720949445601,-510.54,0.00013753,2]
[332071645,1720949445611,-1350.77,0.00013753,2]
[332071646,1720949445621,-500.0,0.00013753,2]
[332071647,1720949445630,-1240.89,0.00013753,2]
[332071649,1720949445640,-1602.67,0.00013753,2]
[332071650,1720949445649,-500.0,0.00013753,2]
[332071651,1720949445659,-500.0,0.00013753,2]
[332071652,1720949445669,-500.0,0.00013753,2]
[332071653,1720949445678,-571.24,0.00013753,2]
[332071655,1720949445688,-1157.54,0.00013753,2]
[332071657,1720949445697,-587.48,0.00013753,2]
[332071659,1720949445707,-500.0,0.00013753,2]
[332071661,1720949445717,-928.19,0.00013753,2]
[332071663,1720949445727,-1458.03,0.00013753,2]
[332071665,1720949445736,-500.0,0.00013753,2]
[332071667,1720949445746,-1047.17,0.00013753,2]
[332071669,1720949445756,-500.0,0.00013753,2]
[332071671,1720949445766,-500.0,0.00013753,2]
[332071673,1720949445776,-358.25763153,0.00013753,2]
[332071754,1720949446604,-1472.89,0.00013698,2]
[332071756,1720949446615,-141.74236847,0.00013753,2]
[332071758,1720949446624,-709.36,0.00013753,2]
[332071760,1720949446634,-500.0,0.00013753,2]
[332071762,1720949446643,-500.0,0.00013753,2]
[332071764,1720949446653,-500.0,0.00013753,2]
[332071766,1720949446662,-500.0,0.00013753,2]
[332071768,1720949446672,-351.7547009,0.00013753,2]
[332071770,1720949446683,-148.2452991,0.00013753,2]
[332071772,1720949446693,-500.0,0.00013753,2]
[332071774,1720949446704,-81.82610323,0.00013753,2]
[332071776,1720949446715,-501.78389677,0.00013753,2]
[332071778,1720949446724,-150.84139861,0.00013753,2]
[332071874,1720949447622,-349.15860139,0.00013753,2]
[332071876,1720949447633,-500.0,0.00013753,2]
[332071878,1720949447644,-31.20315559,0.00013753,2]
[332071880,1720949447658,-468.79684441,0.00013753,2]
[332071882,1720949447668,-500.0,0.00013753,2]
[332071884,1720949447679,-500.0,0.00013753,2]
[332071886,1720949447690,-924.77,0.00013753,2]
[332071888,1720949447700,-704.25,0.00013753,2]
[332071890,1720949447711,-603.03,0.00013753,2]
[332071892,1720949447720,-500.0,0.00013753,2]
[332071894,1720949447730,-500.0,0.00013753,2]
[332071897,1720949447740,-761.75,0.00013753,2]
[332071899,1720949447750,-500.0,0.00013753,2]
[332071900,1720949447759,-500.0,0.00013753,2]
[332071902,1720949447768,-500.0,0.00013753,2]
[332071905,1720949447779,-596.75,0.00013753,2]
[332071907,1720949447790,-968.93,0.00013753,2]
[332071909,1720949447801,-1005.81,0.00013753,2]
[332071911,1720949447812,-646.36,0.00013753,2]
[332071913,1720949447823,-734.93,0.00013753,2]
[332071915,1720949447832,-1101.44,0.00013753,2]
[332071917,1720949447842,-895.03,0.00013753,2]
[332071919,1720949447851,-582.6872172,0.00013753,2]
[332071921,1720949447861,-703.23,0.00013753,2]
[332071924,1720949447871,-598.12,0.00013753,2]
[332071926,1720949447882,-500.0,0.00013753,2]
[332071928,1720949447891,-956.96,0.00013753,2]
[332071930,1720949447901,-843.97,0.00013753,2]
[332071932,1720949447911,-1221.22,0.00013753,2]
[332071934,1720949447921,-500.0,0.00013753,2]
[332071936,1720949447931,-500.0,0.00013753,2]
[332071938,1720949447940,-992.28,0.00013753,2]
[332071940,1720949447949,-679.36,0.00013753,2]
[332071942,1720949447959,-808.25,0.00013753,2]
[332071944,1720949447968,-875.41,0.00013753,2]
[332071946,1720949447979,-622.67,0.00013753,2]
[332071948,1720949447988,-500.0,0.00013753,2]
[332071949,1720949447998,-887.18,0.00013753,2]
[332071952,1720949448010,-500.0,0.00013753,2]
[332071953,1720949448020,-1026.72,0.00013753,2]
[332071956,1720949448034,-629.79,0.00013753,2]
[332071958,1720949448045,-815.82,0.00013753,2]
[332071960,1720949448054,-523.79,0.00013753,2]
[332071962,1720949448064,-500.0,0.00013753,2]
[332071964,1720949448074,-637.28,0.00013753,2]
[332071966,1720949448083,-500.0,0.00013753,2]
[332071968,1720949448093,-686.14,0.00013753,2]
[332071970,1720949448103,-1161.8,0.00013753,2]
[332071972,1720949448112,-500.0,0.00013753,2]
[332071974,1720949448122,-1147.06,0.00013753,2]
[332071976,1720949448131,-593.27,0.00013753,2]
[332071978,1720949448141,-500.0,0.00013753,2]
[332071979,1720949448151,-502.04,0.00013753,2]
[332071980,1720949448160,-551.98,0.00013753,2]
[332071981,1720949448170,-500.0,0.00013753,2]
[332071982,1720949448180,-500.0,0.00013753,2]
[332071983,1720949448189,-2079.95837,0.00013753,2]
[332071984,1720949448199,-533.53,0.00013753,2]
[332071985,1720949448211,-1045.87,0.00013753,2]
[332071987,1720949448221,-1496.69,0.00013753,2]
[332071989,1720949448231,-500.0,0.00013753,2]
[332071991,1720949448241,-798.74,0.00013753,2]
[332071993,1720949448252,-1195.27,0.00013753,2]
[332072000,1720949448313,-1239.89,0.00013753,2]
[332072002,1720949448323,-503.43256332,0.00013753,2]
[332072004,1720949448335,-383.89743668,0.00013753,2]
[332072006,1720949448344,-632.46,0.00013753,2]
[332072008,1720949448354,-767.09,0.00013753,2]
[332072010,1720949448363,-851.41,0.00013753,2]
[332072012,1720949448372,-1166.27,0.00013753,2]
[332072014,1720949448382,-745.48,0.00013753,2]
[332072016,1720949448391,-500.0,0.00013753,2]
[332072018,1720949448400,-625.33,0.00013753,2]
[332072020,1720949448409,-877.13,0.00013753,2]
[332072022,1720949448418,-500.0,0.00013753,2]
[332072024,1720949448428,-1095.74,0.00013753,2]
[332072026,1720949448437,-515.06,0.00013753,2]
[332072028,1720949448446,-500.0,0.00013753,2]
[332072030,1720949448456,-599.13256332,0.00013753,2]
[332072032,1720949448467,-332.19743668,0.00013753,2]
[332072034,1720949448477,-132.52628215,0.00013753,2]
[332072037,1720949448489,-622.66371785,0.00013753,2]
[332072038,1720949448498,-500.0,0.00013753,2]
[332072040,1720949448507,-664.26,0.00013753,2]
[332072042,1720949448517,-557.86,0.00013753,2]
[332072044,1720949448526,-1208.15,0.00013753,2]
[332072046,1720949448535,-500.0,0.00013753,2]
[332072048,1720949448545,-576.78,0.00013753,2]
[332072050,1720949448554,-648.08,0.00013753,2]
[332072052,1720949448564,-500.0,0.00013753,2]
[332072054,1720949448573,-500.0,0.00013753,2]
[332072056,1720949448582,-500.0,0.00013753,2]
[332072058,1720949448592,-1454.04,0.00013753,2]
[332072060,1720949448602,-500.0,0.00013753,2]
[332072062,1720949448612,-500.0,0.00013753,2]
[332072064,1720949448621,-1032.74,0.00013753,2]
[332072065,1720949448631,-899.83,0.00013753,2]
[332072067,1720949448640,-536.26,0.00013753,2]
[332072069,1720949448649,-6800.02,0.00013753,2]
[332072071,1720949448659,-500.0,0.00013753,2]
[332072073,1720949448669,-681.73,0.00013753,2]
[332072075,1720949448679,-1060.17,0.00013753,2]
[332072077,1720949448688,-500.0,0.00013753,2]
[332072079,1720949448697,-883.03,0.00013753,2]
[332072081,1720949448707,-522.07,0.00013753,2]
[332072083,1720949448717,-815.64,0.00013753,2]
[332072085,1720949448726,-500.0,0.00013753,2]
[332072087,1720949448736,-1388.89,0.00013753,2]
[332072089,1720949448746,-500.0,0.00013753,2]
[332072091,1720949448756,-500.0,0.00013753,2]
[332072093,1720949448765,-500.0,0.00013753,2]
[332072095,1720949448775,-500.0,0.00013753,2]
[332072097,1720949448785,-700.07,0.00013753,2]
[332072099,1720949448795,-698.16,0.00013753,2]
[332072101,1720949448805,-500.0,0.00013753,2]
[332072103,1720949448814,-1266.7,0.00013753,2]
[332072105,1720949448825,-537.45,0.00013753,2]
[332072107,1720949448835,-500.0,0.00013753,2]
[332072109,1720949448845,-688.87,0.00013753,2]
[332072111,1720949448855,-947.61,0.00013753,2]
[332072113,1720949448864,-500.0,0.00013753,2]
[332072114,1720949448874,-1478.0,0.00013753,2]
[332072116,1720949448883,-2574.51,0.00013753,2]
[332072118,1720949448892,-500.0,0.00013753,2]
[332072120,1720949448901,-1009.89,0.00013753,2]
[332072122,1720949448911,-500.0,0.00013753,2]
[332072124,1720949448920,-661.24,0.00013753,2]
[332072126,1720949448930,-734.64,0.00013753,2]
[332072128,1720949448940,-860.01,0.00013753,2]
[332072130,1720949448950,-500.0,0.00013753,2]
[332072132,1720949448959,-865.51,0.00013753,2]
[332072134,1720949448969,-500.0,0.00013753,2]
[332072136,1720949448978,-844.87,0.00013753,2]
[332072138,1720949448988,-1032.14,0.00013753,2]
[332072140,1720949448997,-743.71,0.00013753,2]
[332072142,1720949449008,-500.0,0.00013753,2]
[332072144,1720949449017,-873.42,0.00013753,2]
[332072145,1720949449027,-500.0,0.00013753,2]
[332072147,1720949449036,-3174.22,0.00013753,2]
[332072149,1720949449046,-500.0,0.00013753,2]
[332072151,1720949449058,-907.38,0.00013753,2]
[332072153,1720949449067,-771.85,0.00013753,2]
[332072155,1720949449077,-644.42,0.00013753,2]
[332072157,1720949449087,-574.87,0.00013753,2]
[332072159,1720949449096,-555.54,0.00013753,2]
[332072161,1720949449106,-1212.17,0.00013753,2]
[332072163,1720949449116,-3544.38,0.00013753,2]
[332072165,1720949449125,-568.8,0.00013753,2]
[332072167,1720949449135,-677.99,0.00013753,2]
[332072169,1720949449145,-500.0,0.00013753,2]
[332072171,1720949449154,-1263.23,0.00013753,2]
[332072173,1720949449164,-500.0,0.00013753,2]
[332072175,1720949449173,-500.0,0.00013753,2]
[332072177,1720949449183,-1980.52,0.00013753,2]
[332072178,1720949449192,-1291.48,0.00013753,2]
[332072180,1720949449202,-745.02,0.00013753,2]
[332072182,1720949449214,-1733.73,0.00013753,2]
[332072184,1720949449224,-503.56,0.00013753,2]
[332072186,1720949449233,-1645.77,0.00013753,2]
[332072188,1720949449243,-500.0,0.00013753,2]
[332072190,1720949449253,-1534.92,0.00013753,2]
[332072192,1720949449263,-500.0,0.00013753,2]
[332072194,1720949449273,-1614.36,0.00013753,2]
[332072196,1720949449287,-576.93,0.00013753,2]
[332072198,1720949449296,-500.0,0.00013753,2]
[332072200,1720949449307,-500.0,0.00013753,2]
[332072202,1720949449316,-1050.13,0.00013753,2]
[332072204,1720949449325,-2780.44,0.00013753,2]
[332072206,1720949449335,-500.0,0.00013753,2]
[332072208,1720949449344,-746.5,0.00013753,2]
[332072210,1720949449353,-1206.87,0.00013753,2]
[332072212,1720949449362,-500.0,0.00013753,2]
[332072214,1720949449372,-1000.34,0.00013753,2]
[332072216,1720949449381,-916.52,0.00013753,2]
[332072218,1720949449390,-839.45,0.00013753,2]
[332072220,1720949449399,-500.0,0.00013753,2]
[332072222,1720949449408,-501.45,0.00013753,2]
[332072223,1720949449418,-6230.81,0.00013753,2]
[332072224,1720949449427,-1208.23,0.00013753,2]
[332072225,1720949449437,-863.34,0.00013753,2]
[332072226,1720949449447,-529.59,0.00013753,2]
[332072227,1720949449456,-500.0,0.00013753,2]
[332072228,1720949449465,-500.0,0.00013753,2]
[332072229,1720949449474,-816.73,0.00013753,2]
[332072230,1720949449483,-525.1,0.00013753,2]
[332072231,1720949449493,-832.14,0.00013753,2]
[332072232,1720949449502,-1298.36,0.00013753,2]
[332072233,1720949449511,-500.0,0.00013753,2]
[332072234,1720949449520,-643.13,0.00013753,2]
[332072235,1720949449531,-4358.16,0.00013753,2]
[332072236,1720949449540,-941.85,0.00013753,2]
[332072237,1720949449550,-997.63,0.00013753,2]
[332072239,1720949449559,-500.0,0.00013753,2]
[332072241,1720949449568,-500.0,0.00013753,2]
[332072243,1720949449578,-819.68,0.00013753,2]
[332072245,1720949449588,-1203.92,0.00013753,2]
[332072247,1720949449597,-500.0,0.00013753,2]
[332072249,1720949449607,-500.0,0.00013753,2]
[332072250,1720949449616,-500.0,0.00013753,2]
[332072252,1720949449625,-1492.53,0.00013753,2]
[332072254,1720949449634,-1137.55,0.00013753,2]
[332072256,1720949449644,-692.66,0.00013753,2]
[332072258,1720949449653,-500.0,0.00013753,2]
[332072260,1720949449662,-344.28017557,0.00013753,2]
[332072263,1720949449679,-155.71982443,0.00013753,2]
[332072265,1720949449688,-978.78,0.00013753,2]
[332072267,1720949449697,-790.24,0.00013753,2]
[332072269,1720949449706,-83.72249832,0.00013753,2]
[332072271,1720949449717,-1495.42750168,0.00013753,2]
[332072273,1720949449726,-1035.56,0.00013753,2]
[332072275,1720949449736,-513.03,0.00013753,2]
[332072276,1720949449745,-575.13,0.00013753,2]
[332072278,1720949449754,-206.7860723,0.00013753,2]
[332072280,1720949449763,-599.64,0.00013753,2]
[332072282,1720949449772,-500.0,0.00013753,2]
[332072284,1720949449781,-596.22701533,0.00013753,2]
[332072286,1720949449793,-154.38298467,0.00013753,2]
[332072288,1720949449802,-473.82787933,0.00013753,2]
[332072290,1720949449813,-36.11477112,0.00013753,2]
[332072292,1720949449822,-513.43,0.00013753,2]
[332072294,1720949449831,-57.25332309,0.00013753,2]
[332072297,1720949449843,-1212.15236681,0.00013753,2]
[332072301,1720949449876,-203.4843101,0.00013753,2]
[332072303,1720949449885,-150.0,0.00013763,2]
[332072305,1720949449895,-146.5156899,0.00013763,2]
[332072307,1720949449906,-350.83224263,0.00013763,2]
[332072368,1720949450914,-943.31862009,0.00013763,2]
[332072370,1720949451009,-388.3914835,0.00013763,2]
[332072372,1720949451017,-150.0,0.00013768,2]
[332072373,1720949451027,-150.0,0.00013769,2]
[332072374,1720949451037,-150.0,0.00013772,2]
[332072375,1720949451046,-150.0,0.00013779,2]
[332072376,1720949451056,-150.0,0.00013782,2]
[332072377,1720949451066,-145.4536077,0.00013784,2]
[332072378,1720949451078,-4.5463923,0.00013784,2]
[332072379,1720949451088,-495.4536077,0.00013789,2]
[332072380,1720949451100,-4.5463923,0.00013789,2]
[332072381,1720949451110,-500.0,0.00013789,2]
[332072382,1720949451120,-229.47002243,0.00013789,2]
[332072383,1720949451171,-270.52997757,0.00013789,2]
[332072384,1720949451182,-500.0,0.00013789,2]
[332072385,1720949451192,-150.0,0.00013789,2]
[332072386,1720949451202,-150.0,0.00013789,2]
[332072387,1720949451217,-150.0,0.0001379,2]
[332072388,1720949451228,-1092.4767464,0.0001379,2]
[332072389,1720949451242,-2675.11119103,0.0001379,2]
[332072390,1720949451256,-1086.34273564,0.0001379,2]
[332072391,1720949451267,-63015.305589,0.0001379,2]
[332072392,1720949451276,-3800.6697462,0.0001379,2]
[332072393,1720949451291,-7307.43495099,0.0001379,2]
[332072468,1720950634779,-276.01,0.00010285,2]
[332072469,1720950634788,-179.61027696,0.00010998,2]
[332072470,1720950634797,-269.90760611,0.00011098,2]
[332072471,1720950634807,-267.81331206,0.00011098,2]
[332072472,1720950634816,-155.66945484,0.00011098,2]
[332072473,1720950634825,-736.05203984,0.00011098,2]
[332072474,1720950634834,-1763.55452425,0.00011196,7]
[332072475,1720950634844,-1658.70067135,0.00011199,2]
[332072476,1720950634853,-180.26,0.00011849,2]
[332072477,1720950634862,-500.0,0.00011913,2]
[332072478,1720950634873,-14295.62,0.00012062,2]
[332072479,1720950634883,-150.0,0.00012137,2]
[332072480,1720950634893,-250.0,0.00012176,2]
[332072481,1720950634903,-500.0,0.00012208,2]
[332072482,1720950634913,-368.41,0.00012234,2]
[332072483,1720950634923,-250.0,0.00012243,2]
[332072484,1720950634934,-9609.88,0.00012303,2]
[332072485,1720950634945,-391.75,0.00012303,2]
[332072487,1720950634955,-299.99,0.00012312,2]
[332072489,1720950634967,-499.99,0.00012313,2]
[332072491,1720950634977,-172.48,0.00012403,2]
[332072493,1720950634987,-2536.93,0.00012403,2]
[332072496,1720950634999,-276.01,0.00012549,2]
[332072498,1720950635009,-8318.0,0.0001264,2]
[332072500,1720950635020,-1000.0,0.000128,2]
[332072502,1720950635030,-150.0,0.00012822,2]
[332072503,1720950635039,-636.56619552,0.00012823,2]
[332072504,1720950635064,-363.43380448,0.00012823,2]
[332072505,1720950635074,-1250.0,0.00013,2]
[332072506,1720950635085,-500.0,0.00013,2]
[332072507,1720950635095,-500.0,0.00013,2]
[332072508,1720950635104,-500.0,0.00013,2]
[332072509,1720950635114,-200.0,0.00013,4]
[332072510,1720950635124,-500.0,0.000131,4]
[332072511,1720950635134,-800.0,0.000132,4]
[332072512,1720950635147,-1100.0,0.000133,4]
[332072513,1720950635157,-1400.0,0.000134,4]
[332072514,1720950635166,-617.9493,0.00013498,2]
[332072515,1720950635176,-7001.43119768,0.00013498,2]
[332072516,1720950635188,-9008.75270232,0.00013498,2]
[332072517,1720950635197,-200.0,0.000135,4]
[332072518,1720950635207,-152.54482884,0.00013598,2]
[332072519,1720950635216,-312.34598775,0.00013598,2]
[332072520,1720950635226,-1000.0,0.00013598,2]
[332072521,1720950635235,-1000.0,0.00013598,2]
[332072522,1720950635244,-500.0,0.00013598,2]
[332072523,1720950635254,-7762.3759,0.00013598,2]
[332072524,1720950635264,-3400.4621,0.00013598,2]
[332072525,1720950635276,-16097.19053424,0.00013598,2]
[332072526,1720950635307,-3758.23572949,0.00013598,2]
[332072527,1720950635318,-8498.34221736,0.00013598,2]
[332072528,1720950635329,-892.30034146,0.00013598,2]
[332072529,1720950635340,-1400.0,0.00013598,2]
[332072536,1720950637743,-265.59095906,0.00013598,2]
[332072550,1720950638199,-10893.53521256,0.00013598,2]
[332072688,1720950639685,-1422.35956902,0.00013598,2]
[332072693,1720950639722,-1592.90034075,0.00013598,2]
[332072695,1720950639734,-2657.32789731,0.00013598,2]
[332072718,1720950639931,-8597.9,0.00013598,2]
[332073092,1720950643390,-385.31605884,0.00013577,2]
[332073094,1720950643400,-18339.67810912,0.00013598,2]
[332073096,1720950643412,-1048.96928963,0.00013598,2]
[332073098,1720950643422,-48482.5511,0.00013598,2]
[332073100,1720950643432,-200.0,0.000136,4]
[332073102,1720950643442,-2705.0333358,0.0001366,2]
[332073104,1720950643452,-169.07856241,0.0001369,2]
[332073106,1720950643461,-159.80473577,0.0001369,2]
[332073108,1720950643471,-992.0525,0.0001369,2]
[332073110,1720950643481,-500.0,0.00013698,2]
[332073112,1720950643490,-500.0,0.00013698,2]
[332073114,1720950643501,-500.0,0.00013698,2]
[332073116,1720950643510,-500.0,0.00013698,2]
[332073118,1720950643520,-500.0,0.00013698,2]
[332073119,1720950643529,-706.97,0.00013698,2]
[332073121,1720950643539,-550.61,0.00013698,2]
[332073123,1720950643548,-500.0,0.00013698,2]
[332073125,1720950643558,-661.75,0.00013698,2]
[332073127,1720950643568,-500.0,0.00013698,2]
[332073129,1720950643578,-500.0,0.00013698,2]
[332073131,1720950643591,-858.14,0.00013698,2]
[332073133,1720950643601,-500.0,0.00013698,2]
[332073135,1720950643610,-500.0,0.00013698,2]
[332073137,1720950643619,-889.57,0.00013698,2]
[332073139,1720950643630,-569.0,0.00013698,2]
[332073141,1720950643639,-500.0,0.00013698,2]
[332073142,1720950643648,-500.0,0.00013698,2]
[332073144,1720950643657,-500.0,0.00013698,2]
[332073146,1720950643668,-500.0,0.00013698,2]
[332073148,1720950643677,-500.0,0.00013698,2]
[332073150,1720950643687,-500.0,0.00013698,2]
[332073152,1720950643695,-500.0,0.00013698,2]
[332073154,1720950643705,-500.0,0.00013698,2]
[332073156,1720950643714,-703.64,0.00013698,2]
[332073158,1720950643723,-707.76,0.00013698,2]
[332073160,1720950643732,-981.83,0.00013698,2]
[332073162,1720950643741,-654.05,0.00013698,2]
[332073164,1720950643751,-500.0,0.00013698,2]
[332073166,1720950643760,-500.0,0.00013698,2]
[332073167,1720950643769,-545.98,0.00013698,2]
[332073169,1720950643779,-500.0,0.00013698,2]
[332073171,1720950643788,-698.88,0.00013698,2]
[332073174,1720950643797,-985.03,0.00013698,2]
[332073175,1720950643807,-500.0,0.00013698,2]
[332073177,1720950643816,-500.0,0.00013698,2]
[332073179,1720950643826,-500.0,0.00013698,2]
[332073181,1720950643835,-500.0,0.00013698,2]
[332073184,1720950643844,-500.0,0.00013698,2]
[332073186,1720950643854,-500.0,0.00013698,2]
[332073187,1720950643863,-500.0,0.00013698,2]
[332073189,1720950643873,-528.93,0.00013698,2]
[332073191,1720950643882,-500.0,0.00013698,2]
[332073193,1720950643892,-500.0,0.00013698,2]
[332073195,1720950643901,-836.36,0.00013698,2]
[332073197,1720950643910,-500.0,0.00013698,2]
[332073199,1720950643920,-500.0,0.00013698,2]
[332073201,1720950643929,-550.01,0.00013698,2]
[332073203,1720950643939,-500.0,0.00013698,2]
[332073205,1720950643948,-500.0,0.00013698,2]
[332073207,1720950643957,-500.0,0.00013698,2]
[332073209,1720950643967,-500.0,0.00013698,2]
[332073211,1720950643977,-808.76,0.00013698,2]
[332073213,1720950643986,-500.0,0.00013698,2]
[332073215,1720950643996,-500.0,0.00013698,2]
[332073217,1720950644006,-1049.08,0.00013698,2]
[332073219,1720950644015,-1183.53,0.00013698,2]
[332073221,1720950644025,-500.0,0.00013698,2]
[332073223,1720950644034,-500.0,0.00013698,2]
[332073225,1720950644044,-500.0,0.00013698,2]
[332073227,1720950644053,-960.83,0.00013698,2]
[332073229,1720950644062,-688.06,0.00013698,2]
[332073231,1720950644071,-500.0,0.00013698,2]
[332073232,1720950644080,-500.0,0.00013698,2]
[332073234,1720950644090,-500.0,0.00013698,2]
[332073236,1720950644099,-1394.51,0.00013698,2]
[332073238,1720950644108,-1296.35,0.00013698,2]
[332073240,1720950644118,-1270.25,0.00013698,2]
[332073243,1720950644127,-795.36,0.00013698,2]
[332073244,1720950644137,-1068.13,0.00013698,2]
[332073246,1720950644146,-500.0,0.00013698,2]
[332073248,1720950644156,-796.93,0.00013698,2]
[332073250,1720950644165,-725.44,0.00013698,2]
[332073252,1720950644175,-500.0,0.00013698,2]
[332073254,1720950644184,-1524.34,0.00013698,2]
[332073256,1720950644193,-524.99,0.00013698,2]
[332073258,1720950644203,-500.0,0.00013698,2]
[332073260,1720950644212,-500.0,0.00013698,2]
[332073262,1720950644222,-864.31,0.00013698,2]
[332073264,1720950644231,-827.42,0.00013698,2]
[332073266,1720950644241,-500.0,0.00013698,2]
[332073268,1720950644250,-500.0,0.00013698,2]
[332073270,1720950644260,-500.0,0.00013698,2]
[332073272,1720950644270,-500.0,0.00013698,2]
[332073274,1720950644281,-500.0,0.00013698,2]
[332073277,1720950644290,-515.33,0.00013698,2]
[332073279,1720950644300,-500.0,0.00013698,2]
[332073281,1720950644310,-500.0,0.00013698,2]
[332073283,1720950644319,-1192.17,0.00013698,2]
[332073285,1720950644329,-500.0,0.00013698,2]
[332073287,1720950644339,-500.0,0.00013698,2]
[332073289,1720950644348,-500.0,0.00013698,2]
[332073291,1720950644357,-572.56,0.00013698,2]
[332073293,1720950644367,-893.73,0.00013698,2]
[332073295,1720950644376,-905.76,0.00013698,2]
[332073297,1720950644385,-547.24,0.00013698,2]
[332073299,1720950644394,-683.58,0.00013698,2]
[332073301,1720950644404,-1187.88,0.00013698,2]
[332073303,1720950644413,-1032.36,0.00013698,2]
[332073305,1720950644422,-759.13,0.00013698,2]
[332073307,1720950644432,-514.62,0.00013698,2]
[332073309,1720950644442,-938.14,0.00013698,2]
[332073311,1720950644453,-765.93,0.00013698,2]
[332073313,1720950644462,-1162.63,0.00013698,2]
[332073315,1720950644472,-500.0,0.00013698,2]
[332073317,1720950644483,-500.0,0.00013698,2]
[332073319,1720950644493,-500.0,0.00013698,2]
[332073321,1720950644503,-500.0,0.00013698,2]
[332073323,1720950644513,-645.24,0.00013698,2]
[332073325,1720950644522,-500.0,0.00013698,2]
[332073327,1720950644531,-500.0,0.00013698,2]
[332073329,1720950644541,-579.84,0.00013698,2]
[332073331,1720950644550,-762.44,0.00013698,2]
[332073333,1720950644563,-500.0,0.00013698,2]
[332073335,1720950644574,-844.85,0.00013698,2]
[332073337,1720950644587,-500.0,0.00013698,2]
[332073339,1720950644598,-500.0,0.00013698,2]
[332073341,1720950644608,-583.53,0.00013698,2]
[332073342,1720950644617,-1029.2,0.00013698,2]
[332073343,1720950644627,-1172.85,0.00013698,2]
[332073344,1720950644638,-500.0,0.00013698,2]
[332073345,1720950644650,-904.33,0.00013698,2]
[332073346,1720950644662,-500.0,0.00013698,2]
[332073347,1720950644673,-500.0,0.00013698,2]
[332073348,1720950644682,-770.11,0.00013698,2]
[332073350,1720950644692,-1137.48,0.00013698,2]
[332073353,1720950644704,-1332.95,0.00013698,2]
[332073355,1720950644713,-1437.39,0.00013698,2]
[332073357,1720950644722,-197.75813467,0.00013698,2]
[332073359,1720950644732,-500.0,0.00013698,2]
[332073361,1720950644741,-700.72,0.00013698,2]
[332073362,1720950644751,-500.0,0.00013698,2]
[332073364,1720950644760,-850.84,0.00013698,2]
[332073366,1720950644770,-941.63,0.00013698,2]
[332073368,1720950644780,-500.0,0.00013698,2]
[332073370,1720950644789,-1100.84,0.00013698,2]
[332073372,1720950644799,-959.9,0.00013698,2]
[332073374,1720950644809,-820.43,0.00013698,2]
[332073376,1720950644820,-500.0,0.00013698,2]
[332073378,1720950644832,-500.0,0.00013698,2]
[332073380,1720950644844,-500.0,0.00013698,2]